fUSD/lending_fUSD_20251017
["ID","MTS","AMOUNT","RATE_DAILY","PERIOD"]
[391636003,1760712663051,-500.0,0.00024931,2]
[391636004,1760712663061,-1633.1,0.00024931,2]
[391636005,1760712663071,-500.0,0.00024931,2]
[391636006,1760712663080,-608.24615376,0.00024931,2]
[391636007,1760712663094,-500.0,0.00024931,2]
[391636008,1760712663103,-500.0,0.00024931,2]
[391636009,1760712663112,-500.0,0.00024931,2]
[391636010,1760712663122,-500.0,0.00024931,2]
[391636011,1760712663131,-500.0,0.00024931,2]
[391636012,1760712663141,-500.0,0.00024931,2]
[391636013,1760712663150,-500.0,0.00024931,2]
[391636014,1760712663160,-500.0,0.00024931,2]
[391636015,1760712663170,-500.0,0.00024931,2]
[391636016,1760712663179,-179.63878603,0.00024931,2]
[391636017,1760712663189,-500.0,0.00024931,2]
[391636018,1760712663198,-405.09966708,0.00024931,2]
[391636019,1760712663207,-220.8849106,0.00024931,2]
[391636020,1760712663217,-500.0,0.00024931,2]
[391636021,1760712663226,-500.0,0.00024931,2]
[391636022,1760712663236,-227.35313309,0.00024931,2]
[391636023,1760712663245,-500.0,0.00024931,2]
[391636024,1760712663305,-852.2,0.00024931,2]
[391636025,1760712663315,-665.63,0.00024931,2]
[391636026,1760712663327,-733.45,0.00024931,2]
[391636027,1760712663348,-500.0,0.00024931,2]
[391636028,1760712663357,-328.71369394,0.00024931,2]
[391636029,1760712663367,-500.0,0.00024931,2]
[391636030,1760712663376,-2292.25,0.00024931,2]
[391636031,1760712663386,-500.0,0.00024931,2]
[391636032,1760712663395,-500.0,0.00024931,2]
[391636033,1760712663405,-500.0,0.00024931,2]
[391636034,1760712663414,-500.0,0.00024931,2]
[391636035,1760712663424,-304.52182341,0.00024931,2]
[391636036,1760712663433,-500.0,0.00024931,2]
[391636037,1760712663442,-500.0,0.00024931,2]
[391636038,1760712663452,-957.62,0.00024931,2]
[391636039,1760712663462,-218.89731619,0.00024931,2]
[391636040,1760712663471,-500.0,0.00024931,2]
[391636041,1760712663480,-201.25687564,0.00024931,2]
[391636042,1760712663490,-500.99929863,0.00024931,2]
[391636043,1760712663500,-500.0,0.00024931,2]
[391636044,1760712663510,-500.0,0.00024931,2]
[391636045,1760712663519,-280.39083711,0.00024931,2]
[391636046,1760712663528,-500.0,0.00024931,2]
[391636047,1760712663537,-501.52904935,0.00024931,2]
[391636048,1760712663547,-500.0,0.00024931,2]
[391636049,1760712663556,-548.85237847,0.00024931,2]
[391636050,1760712663566,-500.0,0.00024931,2]
[391636051,1760712663576,-500.0,0.00024931,2]
[391636052,1760712663585,-500.0,0.00024931,2]
[391636053,1760712663598,-500.0,0.00024931,2]
[391636054,1760712663609,-500.0,0.00024931,2]
[391636055,1760712663621,-500.0,0.00024931,2]
[391636056,1760712663631,-500.0,0.00024931,2]
[391636057,1760712663640,-641.89016093,0.00024931,2]
[391636058,1760712663651,-500.0,0.00024931,2]
[391636059,1760712663660,-500.0,0.00024931,2]
[391636060,1760712663669,-645.32,0.00024931,2]
[391636061,1760712663679,-444.35990405,0.00024931,2]
[391636062,1760712663689,-500.0,0.00024931,2]
[391636063,1760712663699,-500.0,0.00024931,2]
[391636064,1760712663708,-342.84796562,0.00024931,2]
[391636065,1760712663718,-500.0,0.00024931,2]
[391636066,1760712663728,-500.0,0.00024931,2]
[391636067,1760712663737,-500.0,0.00024931,2]
[391636068,1760712663747,-500.0,0.00024931,2]
[391636069,1760712663756,-500.0,0.00024931,2]
[391636070,1760712663767,-1164.89,0.00024931,2]
[391636071,1760712663776,-500.0,0.00024931,2]
[391636072,1760712663786,-500.0,0.00024931,2]
[391636073,1760712663796,-4111.23,0.00024931,2]
[391636074,1760712663805,-300.0,0.00024931,2]
[391636075,1760712663815,-197.41069151,0.00024931,2]
[391636076,1760712663825,-1020.03,0.00024931,2]
[391636077,1760712663834,-500.0,0.00024931,2]
[391636078,1760712663849,-500.0,0.00024931,2]
[391636079,1760712663858,-500.0,0.00024931,2]
[391636080,1760712663872,-2210.79,0.00024931,2]
[391636081,1760712663881,-500.0,0.00024931,2]
[391636082,1760712663890,-500.0,0.00024931,2]
[391636083,1760712663900,-500.0,0.00024931,2]
[391636084,1760712663909,-1365.45,0.00024931,2]
[391636085,1760712663918,-500.0,0.00024931,2]
[391636086,1760712663928,-500.0,0.00024931,2]
[391636087,1760712663937,-500.0,0.00024931,2]
[391636088,1760712663947,-500.0,0.00024931,2]
[391636089,1760712663956,-495.83180917,0.00024931,2]
[391636090,1760712663965,-500.0,0.00024931,2]
[391636091,1760712663974,-500.0,0.00024931,2]
[391636092,1760712663984,-344.67187884,0.00024931,2]
[391636093,1760712663993,-403.699079,0.00024931,7]
[391636094,1760712664003,-403.699079,0.00024931,7]
[391636095,1760712664016,-500.0,0.00024931,2]
[391636096,1760712664025,-500.0,0.00024931,2]
[391636097,1760712664035,-403.699079,0.00024931,7]
[391636098,1760712664044,-151.0,0.00024931,7]
[391636099,1760712664054,-500.0,0.00024931,2]
[391636100,1760712664063,-403.699079,0.00024931,7]
[391636101,1760712664072,-1008.76,0.00024931,2]
[391636102,1760712664081,-236.67927,0.00024931,7]
[391636103,1760712664098,-1563.72,0.00024931,2]
[391636104,1760712664107,-151.0,0.00024931,7]
[391636105,1760712664116,-151.0,0.00024931,7]
[391636106,1760712664126,-500.0,0.00024931,2]
[391636107,1760712664135,-236.67927,0.00024931,7]
[391636108,1760712664145,-151.0,0.00024931,7]
[391636109,1760712664155,-500.0,0.00024931,2]
[391636110,1760712664164,-151.0,0.00024931,7]
[391636111,1760712664173,-500.0,0.00024931,2]
[391636112,1760712664182,-236.67927,0.00024931,7]
[391636113,1760712664192,-165.828789,0.00024931,7]
[391636114,1760712664201,-151.0,0.00024931,7]
[391636115,1760712664211,-236.67927,0.00024931,7]
[391636116,1760712664220,-500.0,0.00024931,2]
[391636117,1760712664230,-1294.16,0.00024931,2]
[391636118,1760712664239,-151.0,0.00024931,7]
[391636119,1760712664248,-512.6840933,0.00024931,2]
[391636120,1760712664258,-500.0,0.00024931,2]
[391636121,1760712664267,-500.0,0.00024931,2]
[391636122,1760712664277,-151.0,0.00024931,7]
[391636123,1760712664286,-151.0,0.00024931,7]
[391636124,1760712664296,-500.0,0.00024931,2]
[391636125,1760712664305,-151.0,0.00024931,7]
[391636126,1760712664315,-151.0,0.00024931,7]
[391636127,1760712664325,-616.97,0.00024931,2]
[391636128,1760712664335,-1973.58,0.00024931,2]
[391636129,1760712664347,-500.0,0.00024931,2]
[391636130,1760712664357,-2395.85,0.00024931,2]
[391636131,1760712664367,-184.714614,0.00024931,7]
[391636132,1760712664376,-1000.0,0.00024931,2]
[391636133,1760712664386,-184.714614,0.00024931,7]
[391636134,1760712664395,-192.079068,0.00024931,7]
[391636135,1760712664405,-500.0,0.00024931,2]
[391636136,1760712664414,-1381.874064,0.00024931,7]
[391636137,1760712664423,-184.714614,0.00024931,7]
[391636138,1760712664432,-1381.874064,0.00024931,7]
[391636139,1760712664441,-184.714614,0.00024931,7]
[391636140,1760712664450,-500.0,0.00024931,2]
[391636141,1760712664459,-1381.874064,0.00024931,7]
[391636142,1760712664469,-1381.874064,0.00024931,7]
[391636143,1760712664478,-500.0,0.00024931,2]
[391636144,1760712664487,-2145.9,0.00024931,2]
[391636145,1760712664497,-500.0,0.00024931,2]
[391636146,1760712664506,-500.0,0.00024931,2]
[391636147,1760712664515,-240.275471,0.00024931,7]
[391636148,1760712664524,-500.0,0.00024931,2]
[391636149,1760712664533,-151.0,0.00024931,7]
[391636150,1760712664542,-500.0,0.00024931,2]
[391636151,1760712664552,-897.1,0.00024931,2]
[391636152,1760712664561,-1133.0,0.00024931,2]
[391636153,1760712664571,-500.0,0.00024931,2]
[391636154,1760712664580,-524.3176766,0.00024931,2]
[391636155,1760712664592,-500.0,0.00024931,2]
[391636156,1760712664602,-500.0,0.00024931,2]
[391636157,1760712664612,-342.01115542,0.00024931,2]
[391636158,1760712664625,-2887.99,0.00024931,2]
[391636159,1760712664634,-151.0,0.00024931,7]
[391636160,1760712664643,-500.0,0.00024931,2]
[391636161,1760712664653,-500.0,0.00024931,2]
[391636162,1760712664663,-500.0,0.00024931,2]
[391636163,1760712664672,-975.46,0.00024931,2]
[391636164,1760712664681,-500.0,0.00024931,2]
[391636165,1760712664692,-195.58951726,0.00024931,2]
[391636166,1760712664701,-500.0,0.00024931,2]
[391636167,1760712664711,-500.0,0.00024931,2]
[391636168,1760712664720,-500.0,0.00024931,2]
[391636169,1760712664729,-500.0,0.00024931,2]
[391636170,1760712664739,-151.0,0.00024931,7]
[391636171,1760712664748,-208.77153411,0.00024931,2]
[391636172,1760712664757,-151.0,0.00024931,7]
[391636173,1760712664767,-500.0,0.00024931,2]
[391636174,1760712664777,-500.0,0.00024931,2]
[391636175,1760712664787,-500.0,0.00024931,2]
[391636176,1760712664796,-500.0,0.00024931,2]
[391636177,1760712664805,-165.077932,0.00024931,7]
[391636178,1760712664814,-151.0,0.00024931,7]
[391636179,1760712664824,-573.30172837,0.00024931,2]
[391636180,1760712664833,-165.077932,0.00024931,7]
[391636181,1760712664846,-764.541146,0.00024931,7]
[391636182,1760712664855,-500.0,0.00024931,2]
[391636183,1760712664865,-500.0,0.00024931,2]
[391636184,1760712664876,-151.0,0.00024931,7]
[391636185,1760712664886,-165.077932,0.00024931,7]
[391636186,1760712664895,-500.0,0.00024931,2]
[391636187,1760712664904,-764.541146,0.00024931,7]
[391636188,1760712664914,-1037.54,0.00024931,2]
[391636189,1760712664923,-165.077932,0.00024931,7]
[391636190,1760712664932,-764.541146,0.00024931,7]
[391636191,1760712664942,-500.0,0.00024931,2]
[391636192,1760712664952,-500.0,0.00024931,2]
[391636193,1760712664962,-764.541146,0.00024931,7]
[391636194,1760712664972,-500.0,0.00024931,2]
[391636195,1760712664981,-162.0981998,0.00024931,2]
[391636196,1760712664990,-151.0,0.00024931,7]
[391636197,1760712665000,-500.0,0.00024931,2]
[391636198,1760712665010,-151.0,0.00024931,7]
[391636199,1760712665020,-525.23058767,0.00024931,2]
[391636200,1760712665029,-500.0,0.00024931,2]
[391636201,1760712665039,-500.0,0.00024931,2]
[391636202,1760712665048,-500.0,0.00024931,2]
[391636203,1760712665057,-500.0,0.00024931,2]
[391636204,1760712665067,-151.0,0.00024931,7]
[391636205,1760712665077,-500.0,0.00024931,2]
[391636206,1760712665090,-500.0,0.00024931,2]
[391636207,1760712665100,-268.4943097,0.00024931,2]
[391636208,1760712665110,-500.0,0.00024931,2]
[391636209,1760712665120,-244.32516776,0.00024931,2]
[391636210,1760712665130,-500.0,0.00024931,2]
[391636211,1760712665140,-815.66,0.00024931,2]
[391636212,1760712665150,-500.0,0.00024931,2]
[391636213,1760712665159,-500.0,0.00024931,2]
[391636214,1760712665169,-175.65361427,0.00024931,2]
[391636215,1760712665179,-500.0,0.00024931,2]
[391636216,1760712665188,-500.0,0.00024931,2]
[391636217,1760712665197,-500.0,0.00024931,2]
[391636218,1760712665207,-500.0,0.00024931,2]
[391636219,1760712665217,-201.43947205,0.00024931,2]
[391636220,1760712665226,-500.0,0.00024931,2]
[391636221,1760712665235,-500.0,0.00024931,2]
[391636222,1760712665245,-173.60919439,0.00024931,2]
[391636223,1760712665254,-500.0,0.00024931,2]
[391636224,1760712665264,-500.0,0.00024931,2]
[391636225,1760712665273,-500.0,0.00024931,2]
[391636226,1760712665283,-583.81871619,0.00024931,2]
[391636227,1760712665292,-163.01782728,0.00024931,2]
[391636228,1760712665301,-500.0,0.00024931,2]
[391636229,1760712665311,-2321.61,0.00024931,2]
[391636230,1760712665320,-500.0,0.00024931,2]
[391636231,1760712665329,-340.29688813,0.00024931,2]
[391636232,1760712665339,-4259.73,0.00024931,2]
[391636233,1760712665348,-500.0,0.00024931,2]
[391636234,1760712665358,-500.0,0.00024931,2]
[391636235,1760712665368,-500.0,0.00024931,2]
[391636236,1760712665378,-330.06457737,0.00024931,2]
[391636237,1760712665388,-500.0,0.00024931,2]
[391636238,1760712665398,-500.0,0.00024931,2]
[391636239,1760712665407,-500.0,0.00024931,2]
[391636240,1760712665416,-500.0,0.00024931,2]
[391636241,1760712665426,-622.03551351,0.00024931,2]
[391636242,1760712665436,-500.0,0.00024931,2]
[391636243,1760712665445,-500.0,0.00024931,2]
[391636244,1760712665455,-645.63962825,0.00024931,2]
[391636245,1760712665464,-1588.12,0.00024931,2]
[391636246,1760712665473,-500.0,0.00024931,2]
[391636247,1760712665482,-500.0,0.00024931,2]
[391636248,1760712665492,-500.0,0.00024931,2]
[391636249,1760712665501,-500.68932778,0.00024931,2]
[391636250,1760712665511,-534.30216678,0.00024931,2]
[391636251,1760712665520,-545.05706466,0.00024931,2]
[391636252,1760712665530,-500.0,0.00024931,2]
[391636253,1760712665539,-639.01141794,0.00024931,2]
[391636254,1760712665549,-500.0,0.00024931,2]
[391636255,1760712665559,-500.0,0.00024931,2]
[391636256,1760712665568,-2127.98,0.00024931,2]
[391636257,1760712665577,-500.0,0.00024931,2]
[391636258,1760712665589,-606.12381229,0.00024931,2]
[391636259,1760712665599,-500.0,0.00024931,2]
[391636260,1760712665609,-500.0,0.00024931,2]
[391636261,1760712665621,-500.0,0.00024931,2]
[391636262,1760712665631,-324.53229901,0.00024931,2]
[391636263,1760712665639,-500.0,0.00024931,2]
[391636264,1760712665649,-1336.95,0.00024931,2]
[391636265,1760712665660,-500.0,0.00024931,2]
[391636266,1760712665670,-500.0,0.00024931,2]
[391636267,1760712665679,-500.0,0.00024931,2]
[391636268,1760712665689,-500.0,0.00024931,2]
[391636269,1760712665700,-500.0,0.00024931,2]
[391636270,1760712665709,-500.0,0.00024931,2]
[391636271,1760712665719,-500.0,0.00024931,2]
[391636272,1760712665728,-500.0,0.00024931,2]
[391636273,1760712665737,-500.0,0.00024931,2]
[391636274,1760712665747,-500.0,0.00024931,2]
[391636275,1760712665756,-500.0,0.00024931,2]
[391636276,1760712665765,-500.0,0.00024931,2]
[391636277,1760712665774,-500.0,0.00024931,2]
[391636278,1760712665783,-500.0,0.00024931,2]
[391636279,1760712665793,-500.0,0.00024931,2]
[391636280,1760712665803,-403.70717986,0.00024931,2]
[391636281,1760712665812,-500.0,0.00024931,2]
[391636282,1760712665821,-500.0,0.00024931,2]
[391636283,1760712665831,-300.0,0.00024973,2]
[391636284,1760712665843,-1122.02381628,0.00025,7]
[391636285,1760712665852,-1000.0,0.00025,2]
[391636286,1760712665862,-152.0,0.00025163,3]
[391636287,1760712665872,-151.0,0.00025202,7]
[391636288,1760712665881,-609.49,0.00025204,2]
[391636289,1760712665891,-816.0,0.00025204,2]
[391636290,1760712665900,-500.0,0.00025205,2]
[391636291,1760712665910,-500.0,0.00025205,2]
[391636292,1760712665919,-500.0,0.00025205,2]
[391636293,1760712665929,-522.4,0.00025205,2]
[391636294,1760712665939,-500.0,0.00025205,2]
[391636295,1760712665948,-869.21,0.00025205,2]
[391636296,1760712665958,-1021.91,0.00025205,2]
[391636297,1760712665967,-500.0,0.00025205,2]
[391636298,1760712665977,-500.0,0.00025205,2]
[391636299,1760712665987,-411.1109457,0.00025205,2]
[391636300,1760712665996,-500.0,0.00025205,2]
[391636301,1760712666005,-537.34,0.00025205,2]
[391636302,1760712666016,-500.0,0.00025205,2]
[391636303,1760712666027,-1474.93,0.00025205,2]
[391636304,1760712666036,-666.77,0.00025205,2]
[391636305,1760712666047,-500.0,0.00025205,2]
[391636306,1760712666057,-500.0,0.00025205,2]
[391636307,1760712666067,-500.0,0.00025205,2]
[391636308,1760712666076,-500.0,0.00025205,2]
[391636309,1760712666089,-500.0,0.00025205,2]
[391636310,1760712666099,-500.0,0.00025205,2]
[391636311,1760712666108,-500.0,0.00025205,2]
[391636312,1760712666118,-934.67,0.00025205,2]
[391636313,1760712666128,-500.0,0.00025205,2]
[391636314,1760712666137,-1074.19,0.00025205,2]
[391636315,1760712666147,-500.0,0.00025205,2]
[391636316,1760712666156,-506.19289672,0.00025205,2]
[391636317,1760712666166,-296.51036197,0.00025205,2]
[391636318,1760712666176,-2000.0,0.00025205,7]
[391636319,1760712666186,-500.0,0.00025205,2]
[391636320,1760712666195,-218.75703805,0.00025205,2]
[391636321,1760712666205,-500.0,0.00025205,2]
[391636322,1760712666215,-500.0,0.00025205,2]
[391636323,1760712666224,-500.0,0.00025205,2]
[391636324,1760712666234,-490.02136536,0.00025205,2]
[391636325,1760712666245,-522.11726612,0.00025205,2]
[391636326,1760712666255,-501.12437349,0.00025205,2]
[391636327,1760712666266,-500.0,0.00025205,2]
[391636328,1760712666276,-500.0,0.00025205,2]
[391636329,1760712666286,-607.28077351,0.00025205,2]
[391636330,1760712666297,-500.0,0.00025205,2]
[391636331,1760712666307,-500.0,0.00025205,2]
[391636332,1760712666317,-501.25093077,0.00025205,2]
[391636333,1760712666327,-500.0,0.00025205,2]
[391636334,1760712666336,-500.0,0.00025205,2]
[391636335,1760712666354,-500.0,0.00025205,2]
[391636336,1760712666364,-500.0,0.00025205,2]
[391636337,1760712666374,-500.0,0.00025205,2]
[391636338,1760712666385,-500.0,0.00025205,2]
[391636339,1760712666396,-500.0,0.00025205,2]
[391636340,1760712666406,-500.0,0.00025205,2]
[391636341,1760712666416,-500.0,0.00025205,2]
[391636342,1760712666426,-404.41910063,0.00025205,2]
[391636343,1760712666437,-526.53076299,0.00025205,2]
[391636344,1760712666447,-500.0,0.00025205,2]
[391636345,1760712666457,-500.0,0.00025205,2]
[391636346,1760712666467,-500.0,0.00025205,2]
[391636347,1760712666477,-500.0,0.00025205,2]
[391636348,1760712666487,-500.0,0.00025205,2]
[391636349,1760712666497,-500.0,0.00025205,2]
[391636350,1760712666508,-500.0,0.00025205,2]
[391636351,1760712666518,-198.55424579,0.00025205,2]
[391636352,1760712666528,-368.1514152,0.00025205,2]
[391636353,1760712666538,-500.0,0.00025205,2]
[391636354,1760712666548,-500.0,0.00025205,2]
[391636355,1760712666559,-465.17896311,0.00025205,2]
[391636356,1760712666569,-631.48696543,0.00025205,2]
[391636357,1760712666579,-500.0,0.00025205,2]
[391636358,1760712666593,-500.0,0.00025205,2]
[391636359,1760712666603,-500.0,0.00025205,2]
[391636360,1760712666613,-500.0,0.00025205,2]
[391636361,1760712666627,-500.0,0.00025205,2]
[391636362,1760712666636,-500.0,0.00025205,2]
[391636363,1760712666646,-500.0,0.00025205,2]
[391636364,1760712666657,-500.53207947,0.00025205,2]
[391636365,1760712666667,-488.0030008,0.00025205,2]
[391636366,1760712666677,-500.0,0.00025205,2]
[391636367,1760712666687,-544.51334855,0.00025205,2]
[391636368,1760712666698,-500.0,0.00025205,2]
[391636369,1760712666709,-500.0,0.00025205,2]
[391636370,1760712666719,-500.0,0.00025205,2]
[391636371,1760712666729,-626.70446276,0.00025205,2]
[391636372,1760712666739,-500.0,0.00025205,2]
[391636373,1760712666750,-500.0,0.00025205,2]
[391636374,1760712666759,-1458.22,0.00025205,2]
[391636375,1760712666769,-500.0,0.00025205,2]
[391636376,1760712666779,-500.0,0.00025205,2]
[391636377,1760712666788,-500.0,0.00025205,2]
[391636378,1760712666798,-500.0,0.00025205,2]
[391636379,1760712666808,-500.0,0.00025205,2]
[391636380,1760712666817,-500.0,0.00025205,2]
[391636381,1760712666827,-500.0,0.00025205,2]
[391636382,1760712666838,-500.0,0.00025205,2]
[391636383,1760712666850,-537.97173408,0.00025205,2]
[391636384,1760712666861,-500.0,0.00025205,2]
[391636385,1760712666871,-500.0,0.00025205,2]
[391636386,1760712666880,-231.25367231,0.00025205,2]
[391636387,1760712666890,-505.59,0.00025205,2]
[391636388,1760712666900,-500.0,0.00025205,2]
[391636389,1760712666910,-500.0,0.00025205,2]
[391636390,1760712666921,-175.21630211,0.00025205,2]
[391636391,1760712666932,-538.61558938,0.00025205,2]
[391636392,1760712666941,-500.0,0.00025205,2]
[391636393,1760712666952,-311.77872656,0.00025205,2]
[391636394,1760712666962,-500.0,0.00025205,2]
[391636395,1760712666972,-500.0,0.00025205,2]
[391636396,1760712666982,-500.0,0.00025205,2]
[391636397,1760712666992,-500.0,0.00025205,2]
[391636398,1760712667002,-500.0,0.00025205,2]
[391636399,1760712667011,-500.0,0.00025205,2]
[391636400,1760712667021,-551.61029123,0.00025205,2]
[391636401,1760712667031,-837.59,0.00025205,2]
[391636402,1760712667041,-500.0,0.00025205,2]
[391636403,1760712667051,-500.0,0.00025205,2]
[391636404,1760712667061,-226.87369092,0.00025205,2]
[391636405,1760712667071,-500.0,0.00025205,2]
[391636406,1760712667081,-500.0,0.00025205,2]
[391636407,1760712667097,-501.07260041,0.00025205,2]
[391636408,1760712667107,-2355.17,0.00025205,2]
[391636409,1760712667117,-500.0,0.00025205,2]
[391636410,1760712667127,-500.33519733,0.00025205,2]
[391636411,1760712667137,-457.99463658,0.00025205,2]
[391636412,1760712667147,-512.67351883,0.00025205,2]
[391636413,1760712667157,-500.0,0.00025205,2]
[391636414,1760712667168,-500.0,0.00025205,2]
[391636415,1760712667178,-500.0,0.00025205,2]
[391636416,1760712667188,-500.0,0.00025205,2]
[391636417,1760712667198,-500.0,0.00025205,2]
[391636418,1760712667208,-500.0,0.00025205,2]
[391636419,1760712667218,-513.36,0.00025205,2]
[391636420,1760712667227,-501.89062863,0.00025205,2]
[391636421,1760712667237,-500.0,0.00025205,2]
[391636422,1760712667247,-210.80642982,0.00025205,2]
[391636423,1760712667257,-500.0,0.00025205,2]
[391636424,1760712667267,-500.0,0.00025205,2]
[391636425,1760712667277,-500.0,0.00025205,2]
[391636426,1760712667287,-500.0,0.00025205,2]
[391636427,1760712667297,-500.0,0.00025205,2]
[391636428,1760712667308,-500.0,0.00025205,2]
[391636429,1760712667318,-500.0,0.00025205,2]
[391636430,1760712667328,-1192.44,0.00025205,2]
[391636431,1760712667341,-500.0,0.00025205,2]
[391636432,1760712667351,-654.23,0.00025205,2]
[391636433,1760712667362,-500.0,0.00025205,2]
[391636434,1760712667372,-500.0,0.00025205,2]
[391636435,1760712667382,-500.0,0.00025205,2]
[391636436,1760712667392,-2969.48,0.00025205,2]
[391636437,1760712667402,-500.0,0.00025205,2]
[391636438,1760712667412,-500.0,0.00025205,2]
[391636439,1760712667422,-500.0,0.00025205,2]
[391636440,1760712667433,-500.17,0.00025205,2]
[391636441,1760712667443,-1595.99,0.00025205,2]
[391636442,1760712667453,-500.0,0.00025205,2]
[391636443,1760712667464,-2220.63,0.00025205,2]
[391636444,1760712667474,-500.0,0.00025205,2]
[391636445,1760712667484,-500.0,0.00025205,2]
[391636446,1760712667494,-500.0,0.00025205,2]
[391636447,1760712667505,-500.0,0.00025205,2]
[391636448,1760712667515,-500.0,0.00025205,2]
[391636449,1760712667525,-500.0,0.00025205,2]
[391636450,1760712667536,-418.00527162,0.00025205,2]
[391636451,1760712667546,-500.0,0.00025205,2]
[391636452,1760712667557,-500.0,0.00025205,2]
[391636453,1760712667567,-500.0,0.00025205,2]
[391636454,1760712667577,-500.0,0.00025205,2]
[391636455,1760712667587,-554.04,0.00025205,2]
[391636456,1760712667600,-500.0,0.00025205,2]
[391636457,1760712667612,-500.0,0.00025205,2]
[391636458,1760712667623,-619.82,0.00025205,2]
[391636459,1760712667634,-256.02332051,0.00025205,2]
[391636460,1760712667644,-500.0,0.00025205,2]
[391636461,1760712667655,-950.66,0.00025205,2]
[391636462,1760712667666,-500.0,0.00025205,2]
[391636463,1760712667676,-224.82639448,0.00025205,2]
[391636464,1760712667688,-500.0,0.00025205,2]
[391636465,1760712667698,-1855.6,0.00025205,2]
[391636466,1760712667709,-722.3,0.00025205,2]
[391636467,1760712667718,-500.0,0.00025205,2]
[391636468,1760712667728,-500.0,0.00025205,2]
[391636469,1760712667738,-204.21699254,0.00025205,2]
[391636470,1760712667749,-500.0,0.00025205,2]
[391636471,1760712667759,-500.0,0.00025205,2]
[391636472,1760712667769,-563.03267059,0.00025205,2]
[391636473,1760712667779,-500.0,0.00025205,2]
[391636474,1760712667789,-500.0,0.00025205,2]
[391636475,1760712667799,-1437.69,0.00025205,2]
[391636476,1760712667809,-2212.04,0.00025205,2]
[391636477,1760712667819,-500.0,0.00025205,2]
[391636478,1760712667829,-500.0,0.00025205,2]
[391636479,1760712667842,-500.0,0.00025205,2]
[391636480,1760712667852,-500.0,0.00025205,2]
[391636481,1760712667862,-1120.11,0.00025205,2]
[391636482,1760712667873,-1867.215574,0.00025205,2]
[391636483,1760712667883,-500.0,0.00025205,2]
[391636484,1760712667893,-1688.918113,0.00025205,2]
[391636485,1760712667904,-63850.260559,0.00025205,2]
[391636486,1760712667914,-500.0,0.00025205,2]
[391636487,1760712667924,-160.47489151,0.00025205,2]
[391636488,1760712667934,-36735.938127,0.00025205,2]
[391636489,1760712667944,-500.0,0.00025205,2]
[391636490,1760712667955,-500.0,0.00025205,2]
[391636491,1760712667965,-500.0,0.00025205,2]
[391636492,1760712667975,-500.0,0.00025205,2]
[391636493,1760712667985,-500.0,0.00025205,2]
[391636494,1760712667995,-180.30767066,0.00025205,2]
[391636495,1760712668005,-29588.510886,0.00025205,2]
[391636496,1760712668016,-474.19042371,0.00025205,2]
[391636497,1760712668026,-500.0,0.00025205,2]
[391636498,1760712668036,-500.0,0.00025205,2]
[391636499,1760712668047,-500.0,0.00025205,2]
[391636500,1760712668057,-500.48361792,0.00025205,2]
[391636501,1760712668067,-500.0,0.00025205,2]
[391636502,1760712668078,-500.0,0.00025205,2]